Cogmind - Beta 13 @@@ ROGUE MODE // 2024.07.19 @ 02:28:42 Player: Sionnis Result: Destroyed by 88-ZOU(R) with Subdweller Machine Gun Performance ------------- Evolutions (0) 0 Regions Visited (2) 400 Robots Destroyed (35) 175 Value Destroyed (927) 927 Prototype IDs (1) 20 Alien Tech Used (0) 0 Bonus (0) 0 TOTAL SCORE: 1522 Bonus ------- None Cogmind --------- Core Integrity 0/250 Matter 300/300 Energy 177/180 System Corruption 2% Temperature Cool (5) Movement Treading (240) Ox1 Location -10/Subcaves Parts ------- > --- POWER (1) -------- Meta Core > --- PROPULSION (2) --- Light Treads Light Treads > --- UTILITY (2) ------ Large Storage Unit Makeshift Light Armor Plating > --- WEAPON (2) ------- Subdweller Laser Subdweller Beam Cannon > --- INVENTORY (15) --- Subdweller Power Source Wheel Subdweller Monowheel Targeting Computer Core Shielding Light Armor Plating Particle Gun Subdweller Laser Subdweller Beam Cannon Light Assault Rifle Battle Rifle Barrage Gun Peak State ------------ > --- POWER ------------ Meta Core > --- PROPULSION ------- Light Treads Light Treads Light Treads > --- UTILITY ---------- Large Storage Unit Light Armor Plating Light Armor Plating > --- WEAPON ----------- Riot Gun Subdweller Machine Gun Subdweller Machine Gun > --- INVENTORY -------- Subdweller Power Source Light Treads Light Treads Wheel Subdweller Monowheel Targeting Computer Core Shielding Core Shielding Light Armor Plating Makeshift Light Armor Plating Riot Gun Particle Gun Subdweller Laser Light Assault Rifle [Rating: 28] Favorites ----------- Power Ion Engine Engine Ion Engine Power Core Meta Core Propulsion Light Treads Treads Light Treads Utility Large Storage Unit Storage Large Storage Unit Processor Targeting Computer Protection Light Armor Plating Weapon Subdweller Machine Gun Energy Gun Riot Gun Energy Cannon Subdweller Beam Cannon Ballistic Gun Subdweller Machine Gun Build | -11 -10 -10 ------- Run | Yrd Mat Sub Slots Evolved . | . . . Power . | . . . Propulsion . | . . . Utility . | . . . Weapon . | . . . Parts Attached 32 | 6 7 19 Power 3 | 1 1 1 Engine 2 | 1 1 . Core 1 | . . 1 Reactor . | . . . Propulsion 6 | 2 1 3 Treads 6 | 2 1 3 Leg . | . . . Wheel . | . . . Hover . | . . . Flight . | . . . Utility 9 | 1 4 4 Device . | . . . Storage 2 | 1 1 . Processor 1 | . 1 . Hackware . | . . . Protection 6 | . 2 4 Artifact . | . . . Weapon 14 | 2 1 11 Energy Gun 4 | . . 4 Energy Cannon 2 | . . 2 Ballistic Gun 8 | 2 1 5 Ballistic Cannon . | . . . Launcher . | . . . Special Weapon . | . . . Impact Weapon . | . . . Slashing Weapon . | . . . Piercing Weapon . | . . . Special Melee Weapon . | . . . Unidentified Prototypes 1 | . . 1 Parts Lost 9 | . 2 7 Power 1 | . 1 . Propulsion 3 | . . 3 Utility 2 | . . 2 Weapon 3 | . 1 2 Highest Loss Streak 3 | . 1 3 To Critical Strikes . | . . . Average Slot Usage (%) 98 | . 99 97 Engine 9 | . 13 6 Core 3 | . . 5 Treads 28 | . 27 28 Storage 13 | . 14 12 Protection 13 | . 12 13 Energy Gun 5 | . . 8 Energy Cannon 2 | . . 4 Ballistic Gun 20 | . 28 16 Naked Turns . | . . . Heaviest Build 46 | 13 31 46 Greatest Support 60 | 40 40 60 Greatest Overweight (x) 2 | . . 2 Average Overweight (x) . | . . . Largest Inventory Capacity 15 | 8 15 15 Average Capacity 14 | 7 13 15 Most Carried 15 | 3 11 15 Average Carried 10 | 2 6 13 Final Capacity 15 | 8 15 15 Final Carried 12 | 3 11 12 Class Distribution -------------------- 77% | Mutant 14% | Tank 7% | Scavenger-Tank Dominant Class ---------------- Mutant | -10/Materials Mutant | -10/Subcaves Resources | -11 -10 -10 ----------- Run | Yrd Mat Sub Matter Collected 1061 | 206 411 444 Remotely . | . . . Salvage Created 1333 | . 638 695 Parts 86 | . 39 47 Haulers Intercepted 2 | . 2 . Recyclers Shooed 2 | . 2 . Parts Field Recycled . | . . . Retrieved Matter . | . . . Parts Self-Destructed 13 | . . 13 Prevented . | . . . Kills | -11 -10 -10 ------- Run | Yrd Mat Sub Combat Hostiles Destroyed 29 | . 12 17 Guns 27 | . 12 15 Cannons 2 | . . 2 Classes Destroyed 8 | . 6 2 Worker 1 | . 1 . Hauler 2 | . 2 . Recycler 1 | . 1 . Watcher 2 | . 2 . Swarmer 8 | . 3 5 Grunt 9 | . 9 . Sentry 1 | . . 1 Subdweller 11 | . . 11 Best Kill Streak 4 | . 4 4 Combat Bots Only 4 | . 3 4 Max Kills in Single Turn 1 | . 1 1 Gunslinging . | . . . Exploded . | . . . Melee . | . . . Uniques/NPCs Destroyed . | . . . Combat | -11 -10 -10 -------- Run | Yrd Mat Sub Hostile Shots Fired 143 | . 78 65 Missed 39 | . 27 12 Damage Taken 1846 | . 558 1288 Core 252 | . 70 182 Absorbed by Shields . | . . . Redirected to Shielding 12 | . 12 . Regen/Repaired (Parts) 124 | . 124 . Core Remaining (%) 100 | 100 . . Volleys Fired 148 | . 66 82 Largest 3 | . 2 3 Hottest 170 | . 40 170 Shots Fired 303 | . 135 168 Gun 285 | . 135 150 Cannon 18 | . . 18 Launcher . | . . . Special . | . . . Kinetic 252 | . 135 117 Thermal 37 | . . 37 Explosive . | . . . Electromagnetic 14 | . . 14 Robot Hit Streak 25 | . 10 25 Robot Miss Streak 4 | . 4 3 Penetration Max . | . . . Secondary Targets 4 | . 1 3 Max Gunslinging Chain 1 | . 1 1 Shots Hit Robots 191 | . 78 113 Core Hits 69 | . 34 35 Critical Kills 3 | . . 3 Critical Parts Destroyed 3 | . 3 . Critical Strikes 7 | . 3 4 Destroy 7 | . 3 4 Melee Attacks . | . . . Impact . | . . . Slashing . | . . . Piercing . | . . . Sneak Attacks . | . . . Combat Hostiles . | . . . Follow-up Attacks . | . . . Damage Inflicted 2760 | . 914 1846 Guns 2430 | . 914 1516 Cannons 330 | . . 330 Explosions . | . . . Melee . | . . . Ramming . | . . . Kinetic 2021 | . 914 1107 Thermal 629 | . . 629 Explosive . | . . . Electromagnetic 110 | . . 110 Impact . | . . . Slashing . | . . . Piercing . | . . . Highest Corruption 2 | . 2 2 Average Corruption 2 | . 2 2 Corruption Purged . | . . . Corruption Blocked . | . . . Effects 52 | . 18 34 Message Errors 8 | . 3 5 Matter Fused 15 | . 6 9 Heat Flow Errors 9 | . 3 6 Energy Discharges 3 | . . 3 Data Loss (minor) 4 | . 1 3 Data Loss (major) 4 | . 2 2 Misfires 5 | . 3 2 Alerts 2 | . . 2 Weapon Failures 2 | . . 2 Overload Shots . | . . . Overflow Damage . | . . . Projectiles . | . . . Explosions . | . . . Melee . | . . . Knockbacks . | . . . Impact . | . . . Kinetic . | . . . Secondary . | . . . Self-Inflicted Damage . | . . . Shots . | . . . Rammed . | . . . Targets Rammed . | . . . Kicked . | . . . Crushed . | . . . Highest Temperature 323 | . 211 323 Average Temperature 89 | . 48 111 Received Heat Transfer 459 | . 261 198 Effects 1 | . . 1 Interference 1 | . . 1 Siege Activations . | . . . Robots Corrupted . | . . . Combat Hostiles . | . . . Parts Fried . | . . . Impact Corruptions . | . . . Robots Melted . | . . . Combat Hostiles . | . . . Parts Melted 3 | . . 3 Heat Transferred 855 | . . 855 Parts Sabotaged . | . . . Parts Stolen . | . . . Parts Stripped . | . . . Power Chain Reactions . | . . . Alert | -11 -10 -10 ------- Run | Yrd Mat Sub Peak Influence 227 | . 227 . Initial . | . . . Average 70 | . 74 . Maximum Alert Level 1 | . 1 . Low Security (%) 94 | 100 94 . Level 1 5 | . 5 . Level 2 . | . . . Level 3 . | . . . Level 4 . | . . . Level 5 . | . . . High Security . | . . . Max Security . | . . . Squads Dispatched 3 | . 3 . Investigation 1 | . 1 . Extermination . | . . . Reinforcement 2 | . 2 . Assault . | . . . Garrison . | . . . Intercept . | . . . Searches Triggered . | . . . Construction Impeded . | . . . Haulers Reinforced . | . . . Active Scanning Responses . | . . . Cargo Convoy Interrupts . | . . . Stealth | -11 -10 -10 --------- Run | Yrd Mat Sub Distress Signals 1 | . 1 . Communications Jammed . | . . . Distress Signals . | . . . Times Spotted 43 | . 20 23 Peak Tracking Total 4 | . 4 4 Tactical Retreats 3 | . . 3 Traps | -11 -10 -10 ------- Run | Yrd Mat Sub Traps Triggered 4 | . 2 2 Indirectly . | . . . Trap Hack Attempts . | . . . Triggered . | . . . Disarmed . | . . . Reprogrammed . | . . . Reused . | . . . Traps Extracted . | . . . Installed . | . . . Triggered . | . . . Machines | -11 -10 -10 ---------- Run | Yrd Mat Sub Machines Disabled 1 | . . 1 Max in Single Turn 1 | . . 1 Machines Repaired . | . . . Machines Dismantled . | . . . Machines Sabotaged . | . . . Overloaded Fab Kills . | . . . Hacking | -11 -10 -10 --------- Run | Yrd Mat Sub Machines Accessed 4 | . 3 1 Terminals 2 | . 2 . Fabricators . | . . . Repair Stations 1 | . 1 . Recycling Units . | . . . Scanalyzers . | . . . Garrison Access . | . . . Total Hacks 11 | . 10 1 Successful 6 | . 5 1 Failed 5 | . 5 . Catastrophic 1 | . 1 . Database Lockouts . | . . . Manual 6 | . 6 . Terminals 7 | . 7 . Fabricators . | . . . Repair Stations 3 | . 3 . Recycling Units . | . . . Scanalyzers . | . . . Garrison Access . | . . . Terminal Hacks 4 | . 3 1 Record 1 | . . 1 Robot Analysis 2 | . 2 . Hauler Manifests 1 | . 1 . Fabricator Hacks . | . . . Repair Station Hacks 2 | . 2 . Scan Component 1 | . 1 . Repair 1 | . 1 . Recycling Unit Hacks . | . . . Scanalyzer . | . . . Garrison Access Hacks . | . . . Unauthorized Hacks . | . . . Terminals . | . . . Fabricators . | . . . Repair Stations . | . . . Recycling Units . | . . . Scanalyzers . | . . . Garrison Access . | . . . Data Cores Recovered . | . . . Used . | . . . Hacking Detections 3 | . 3 . Full Trace Events . | . . . Feedback Events . | . . . Feedback Blocked . | . . . Robot Schematics Acquired . | . . . Robots Built . | . . . Authchips . | . . . Time . | . . . Total Robot Build Rating . | . . . Part Schematics Acquired . | . . . Parts Built . | . . . Authchips . | . . . Time . | . . . Total Part Build Rating . | . . . Parts Repaired 1 | . 1 . Time 26 | . 26 . Parts Recycled . | . . . Recycled Matter . | . . . Retrieved Matter . | . . . Retrieved Components . | . . . Parts Scanalyzed . | . . . Part Schematics Acquired . | . . . Parts Damaged . | . . . Bothacking | -11 -10 -10 ------------ Run | Yrd Mat Sub Used RIF Installer . | . . . Robots Hacked . | . . . Non-combat . | . . . Combat . | . . . Robot Hacks Applied . | . . . Relay Couplers Released . | . . . Fabnet Peak Effective % . | . . . Robots Rewired . | . . . Allies Hacked . | . . . Hacks Repelled . | . . . Allies | -11 -10 -10 -------- Run | Yrd Mat Sub Total Allies . | . . . Largest Group . | . . . Highest-Rated Group . | . . . Highest-Rated Ally . | . . . Total Orders . | . . . Ally Attacks . | . . . Total Damage . | . . . Kills . | . . . Allies Corrupted . | . . . Allies Melted . | . . . Intel | -11 -10 -10 ------- Run | Yrd Mat Sub Robot Analysis Total 2 | . 2 . Derelict Logs Recovered 2 | . . 2 Drone Launches . | . . . Drone Recoveries . | . . . Exploration | -11 -10 -10 ------------- Run | Yrd Mat Sub Turns Passed 3569 | 69 1202 2298 Spaces Moved 1808 | 39 568 1201 Core 4 | 4 . . Treads 1804 | 35 568 1201 Legs . | . . . Wheels . | . . . Hover . | . . . Flight . | . . . Fastest Speed 50 | 50 160 160 Average Speed 162 | 148 160 164 Slowest Speed 320 | 160 160 320 Overloaded Moves . | . . . Propulsion Burnouts . | . . . Robots Hopped . | . . . Cave-ins Triggered . | . . . Exploration Rate (%) 58 | 4 92 78 Regions Visited 2 Branch Regions 1 Pre-discovered Areas . | . . . Known Exits Taken . | . . . Unknown Exits Taken 2 | 1 1 . Scrap Searched 10 | . . 10 Spaces Dug . | . . . Terrain Destroyed 1 | . . 1 Melee . | . . . Projectile 1 | . . 1 AOE . | . . . Terrain Rammed . | . . . Walls Destroyed . | . . . Machines Disabled . | . . . Actions | -11 -10 -10 --------- Run | Yrd Mat Sub Total 2169 | 47 744 1378 Wait 141 | . 87 54 Move 1806 | 38 567 1201 Hop . | . . . Pick Up 25 | 3 12 10 Fast Attach 17 | 6 4 7 Attach 10 | . 2 8 Detach 2 | . . 2 Swap 5 | . 1 4 Drop 15 | . 5 10 Fire 148 | . 66 82 Melee . | . . . Ram . | . . . Kick . | . . . Crush . | . . . Escape Stasis . | . . . Rewire . | . . . Trap . | . . . Miscellaneous . | . . . Route ------- -11/Scrapyard -10/Materials (discovered 6 exits: [*Mat x3] / [*Min x2] / *Sub) -10/Subcaves (discovered 2 exits: [*Mat x2]) History --------- Turn | Location | Event 34 | -11/Scrapyard | Discovered new exit (range 16) 70 | -11/Scrapyard | Entered Materials 305 | -10/Materials | Build established: Mutant 512 | -10/Materials | Discovered new exit (range 6) 635 | -10/Materials | Discovered new exit (range 13) 721 | -10/Materials | Discovered new exit (range 10) 881 | -10/Materials | Discovered new exit (range 6) 955 | -10/Materials | Discovered new exit (range 15) 1127 | -10/Materials | Repaired Lgt. Treads 1258 | -10/Materials | Discovered new exit (range 10) 1272 | -10/Materials | Entered Subcaves 1276 | -10/Subcaves | Learned Materials emergency access door positions 1338 | -10/Subcaves | Discovered new exit (range 16) 1592 | -10/Subcaves | Shifting Twisted Machinery released Mak. Laser 1604 | -10/Subcaves | Shifting Twisted Machinery released Riot Gun 1705 | -10/Subcaves | Discovered new exit (range 10) 1795 | -10/Subcaves | Shifting Twisted Machinery released Battle Cannon 1796 | -10/Subcaves | Shifting Twisted Machinery released Sub. Power Source 1950 | -10/Subcaves | A swath of the cavern ceiling suddenly collapsed 2233 | -10/Subcaves | Core integrity fell below 50% 2367 | -10/Subcaves | Visited 4L-MR0's lab 2387 | -10/Subcaves | Found Prototype Power Core 2387 | -10/Subcaves | Identified Meta Core 2388 | -10/Subcaves | Attached Meta Core, gained temporary slots: Propulsion, Utility, Weapon 2528 | -10/Subcaves | Disturbed a concealed Subdweller 2805 | -10/Subcaves | A swath of the cavern ceiling suddenly collapsed 2833 | -10/Subcaves | Core integrity fell below 20% 3018 | -10/Subcaves | Learned 2 Materials zone layouts 3096 | -10/Subcaves | Visited Clippyterm 3383 | -10/Subcaves | Lost 3 parts (2n1w) 3570 | -10/Subcaves | Destroyed by 88-ZOU(R) with Subdweller Machine Gun Last Messages --------------- Shield. Sub. Power Source melted. V1-PD9(R) destroyed. Acquired 10 matter. Overheating: System interference. Sub. Laser temporarily disabled. Acquired 10 matter. Subatomizers dissect the Sub. Monowheel. System corrupted: Heat flow error (+122). Acquired Sub. Laser. Subatomizers dissect the Sub. Monowheel. System corrupted: Heat flow error (+115). Subatomizers dissect the Sub. Monowheel. System corrupted: Matter fused (-10). System corrupted: Matter fused (-8). Acquired 18 matter. System corrupted: Heat flow error (+194). System corrupted: Sub. Beam Cannon failed to cycle. Sub. Laser shoots sparks and powers down. Map ----- +----------------------------------------------------+ | ?????????????????????????????????????????????????? | | ?????????????????????????????????????????????????? | | ?????????????????????????????????????????????????? | | ?????????????????????????????????????????????????? | | ?????????????????????????????????????????????????? | | ?????????????????????????????????????????????????? | | ?????????????????????????????????????????????????? | | ?????????????????????????????????????????????????? | | ?????????????????????????????????????????????????? | | ?????????????????????????????????????????????????? | | ?????????????????????????????????????????????????? | | ?????????????????????????????????????????????????? | | ?######??????????????????????????????????????????? | | ## ""############??????????#####????????????????? | | # """#"%&&= ## ####??????## #=##???????????????? | | """!&* * #??????#!* %#???????????????? | | "" =%%&% #??????##"&###???????????????? | | ### ######!=# # ##?????### #????##??????????? | | ###?###????###### #????## # ###?## #??????????? | | ????????????????# ####?# < < ### #??????????? | | ????????????????## ### ## #??????????? | | ???????????????## #??????????? | | ??????????????## #??????????? | | ??????????????# #??????????? | | ??????????????#### R ##??????????? | | ?????????????????## @ ### ##??????????? | | ??????????????????## ### #### #??????????? | | ???????????????????### ##?## ### ##??????????? | | ?????????????????????####???## ##???????????? | | ????????????????????????????## #????????????? | | ???????????????????????????## ##????????????? | | ??????????????????????????## ##????????????? | | ??????????????????????????# #####????????? | | ??????????????????????????# #????????? | | ??????????????????????????## #????????? | | ???????????????????????????# ##????????? | | ???????????????????????????# ##?????????? | | ???????????????????????????# ###????????? | | ???????????????????????????# #????????? | | ???????????????????????????# ##????????? | | ??????????????????????????## #?????????? | | ??????????????????????????# ## #?????????? | | ??????????????????????????# #? ##?????????? | | ??????????????????????????# ### #??????????? | | ??????????????????????????# #??????????? | | ??????????????????????????# ## # #??????????? | | ?? ???????????????????????###?# #####??????????? | | "" ???????????????????????????## #??????????? | | "" #????? #??????????????????### ##??????????? | | #????""#??????????????????# ##???????????? | +----------------------------------------------------+ Best States ------------- Heat Dissipation 25 Energy Generation 17 Energy Capacity 250 Matter Stores 300 Matter Capacity 300 Sight Range 16 Terrain Scan Density 10 Armor Coverage 300 Core Shielding 20 Weapon Shielding 33 Evasion (%) 40 Targeting Accuracy 5 Recoil Reduction 3 Item Schematics ----------------- None Robot Schematics ------------------ None Fabricated ------------ Nothing Alien Tech Used ----------------- None Achievements -------------- None Challenges ------------ None Game ------ Seed MakeshiftMolecularThruster Manual? 1 Play Time 00:17:33 Cumulative 436.2 hours Start 2024.07.19 @ 02:10:19 End 2024.07.19 @ 02:28:42 Sessions 1 Manual Loads 0 Difficulty Rogue Special Mode None Game No. 255 Rogue 255 Adventurer 0 Explorer 0 Win Type - Total 30 Types 19/2/2/3/1/1/1/1/0 Lore% 85 Gallery% 94 Achievement% 95 Wizard Run 0 Options --------- Layout 1 ASCII 0 Keyboard 0 Movement Numpad Keybinds 0 Fullscreen 1 Font 24/Smallcaps Map View 50x35 Zoom Use 0% Tactical HUD 1 Map Filters NONE Filters NONE Steam 1 RUN: a498d502-76d5-4e46-aa18-723a11d0a111